fUST/lending_fUST_20250118
["ID","MTS","AMOUNT","RATE_DAILY","PERIOD"]
[349464490,1737197436344,-628.29,0.00023013,3]
[349464491,1737197436354,-500.0,0.00023013,3]
[349464492,1737197436366,-2655.67,0.00023013,3]
[349464493,1737197436376,-5096.66,0.00023013,3]
[349464494,1737197436388,-915.28,0.00023013,3]
[349464495,1737197436399,-496.94,0.00023013,3]
[349464496,1737197436410,-1405.78,0.00023013,3]
[349464497,1737197436420,-1000.0,0.00023039,2]
[349464498,1737197436431,-255.0,0.0002304,9]
[349464499,1737197436441,-2003.16326709,0.00023072,3]
[349464500,1737197436451,-267.90532022,0.00023088,2]
[349464501,1737197436462,-500.0,0.00023088,2]
[349464502,1737197436474,-150.502,0.00023089,2]
[349464503,1737197436486,-395.0,0.00023089,2]
[349464504,1737197436497,-288.4,0.00023089,2]
[349464505,1737197436508,-2309.0,0.00023089,2]
[349464506,1737197436519,-300.0,0.000231,10]
[349464507,1737197436530,-1000.0,0.000231,2]
[349464508,1737197436541,-2003.16326709,0.00023141,3]
[349464509,1737197436551,-151.0,0.00023149,2]
[349464510,1737197436562,-500.0,0.0002315,2]
[349464511,1737197436574,-445.09918135,0.0002315,2]
[349464512,1737197436585,-609.21967343,0.0002315,2]
[349464513,1737197436600,-500.0,0.0002315,2]
[349464514,1737197436612,-500.0,0.0002315,3]
[349464515,1737197436623,-500.0,0.0002315,3]
[349464516,1737197436634,-6387.19,0.0002315,3]
[349464517,1737197436645,-2246.61,0.0002315,3]
[349464518,1737197436655,-643.84,0.0002315,3]
[349464519,1737197436666,-679.86,0.0002315,3]
[349464520,1737197436676,-500.0,0.0002315,3]
[349464521,1737197436686,-735.4,0.0002315,3]
[349464522,1737197436697,-328.66,0.0002315,3]
[349464523,1737197436707,-664.55,0.0002315,3]
[349464524,1737197436717,-500.0,0.0002315,3]
[349464525,1737197436728,-500.0,0.0002315,3]
[349464526,1737197436738,-628.29,0.0002315,3]
[349464527,1737197436748,-500.0,0.0002315,3]
[349464528,1737197436758,-2655.67,0.0002315,3]
[349464529,1737197436768,-5096.66,0.0002315,3]
[349464530,1737197436778,-915.28,0.0002315,3]
[349464531,1737197436789,-1405.78,0.0002315,3]
[349464532,1737197436799,-151.0,0.00023155,7]
[349464533,1737197436811,-2003.16326709,0.0002321,3]
[349464534,1737197436821,-1836.0,0.0002324,4]
[349464535,1737197436832,-2003.16326709,0.00023279,3]
[349464536,1737197436842,-500.0,0.00023287,2]
[349464537,1737197436852,-500.0,0.00023287,3]
[349464538,1737197436864,-500.0,0.00023287,3]
[349464539,1737197436874,-6387.19,0.00023287,3]
[349464540,1737197436884,-2246.61,0.00023287,3]
[349464541,1737197436894,-643.84,0.00023287,3]
[349464542,1737197437028,-679.86,0.00023287,3]
[349464543,1737197437041,-500.0,0.00023287,3]
[349464544,1737197437051,-735.4,0.00023287,3]
[349464545,1737197437060,-664.55,0.00023287,3]
[349464546,1737197437071,-505.8,0.00023287,3]
[349464547,1737197437081,-500.0,0.00023287,3]
[349464548,1737197437091,-628.29,0.00023287,3]
[349464549,1737197437100,-308.68,0.00023287,3]
[349464550,1737197437110,-2655.67,0.00023287,3]
[349464551,1737197437119,-5096.66,0.00023287,3]
[349464552,1737197437128,-915.28,0.00023287,3]
[349464553,1737197437137,-1405.78,0.00023287,3]
[349464554,1737197437146,-151.0,0.000233,6]
[349464555,1737197437155,-151.0,0.00023335,7]
[349464556,1737197437165,-2003.16326709,0.00023348,3]
[349464557,1737197437174,-151.0,0.000234,7]
[349464558,1737197437183,-2003.16326709,0.00023417,3]
[349464559,1737197437192,-500.0,0.00023424,2]
[349464560,1737197437201,-150.43447722,0.00023424,2]
[349464561,1737197437210,-500.0,0.00023424,2]
[349464562,1737197437219,-500.0,0.00023424,3]
[349464563,1737197437228,-500.0,0.00023424,3]
[349464564,1737197437237,-6387.19,0.00023424,3]
[349464565,1737197437246,-2246.61,0.00023424,3]
[349464566,1737197437254,-643.84,0.00023424,3]
[349464567,1737197437264,-679.86,0.00023424,3]
[349464568,1737197437273,-500.0,0.00023424,3]
[349464569,1737197437283,-735.4,0.00023424,3]
[349464570,1737197437292,-664.55,0.00023424,3]
[349464571,1737197437301,-500.0,0.00023424,3]
[349464572,1737197437310,-628.29,0.00023424,3]
[349464573,1737197437320,-2655.67,0.00023424,3]
[349464574,1737197437331,-500.0,0.00023424,2]
[349464575,1737197437340,-500.0,0.00023424,2]
[349464576,1737197437350,-5096.66,0.00023424,3]
[349464577,1737197437359,-915.28,0.00023424,3]
[349464578,1737197437370,-1405.78,0.00023424,3]
[349464579,1737197437379,-500.0,0.00023424,2]
[349464580,1737197437390,-2003.16326709,0.00023486,3]
[349464581,1737197437407,-50468.16797957,0.000235,2]
[349464582,1737197437421,-500.0,0.000235,2]
[349464583,1737197437431,-151.0,0.000235,5]
[349464584,1737197437441,-151.0,0.000235,7]
[349464585,1737197437451,-288.992004,0.000235,7]
[349464586,1737197437460,-151.0,0.000235,7]
[349464587,1737197437469,-151.0,0.000235,7]
[349464588,1737197437479,-245.611846,0.000235,7]
[349464589,1737197437489,-2478.114996,0.000235,7]
[349464590,1737197437498,-2478.114996,0.000235,7]
[349464591,1737197437507,-151.0,0.000235,7]
[349464592,1737197437517,-151.0,0.000235,7]
[349464593,1737197437527,-151.0,0.000235,7]
[349464594,1737197437538,-151.0,0.000235,7]
[349464595,1737197437548,-1130.767212,0.000235,7]
[349464596,1737197437558,-1130.767212,0.000235,7]
[349464597,1737197437567,-363.346189,0.000235,7]
[349464598,1737197437576,-363.346189,0.000235,7]
[349464599,1737197437586,-151.0,0.000235,7]
[349464600,1737197437595,-151.0,0.000235,7]
[349464601,1737197437605,-151.0,0.000235,7]
[349464602,1737197437614,-151.0,0.000235,7]
[349464603,1737197437623,-151.0,0.000235,7]
[349464604,1737197437632,-151.0,0.000235,7]
[349464605,1737197437641,-151.0,0.000235,7]
[349464607,1737197437651,-151.0,0.000235,7]
[349464608,1737197437660,-151.0,0.000235,7]
[349464610,1737197437669,-151.0,0.000235,7]
[349464611,1737197437678,-151.0,0.00023514,7]
[349464612,1737197437686,-2003.16326709,0.00023555,3]
[349464613,1737197437695,-500.0,0.00023561,2]
[349464614,1737197437704,-500.0,0.00023561,3]
[349464615,1737197437714,-500.0,0.00023561,3]
[349464616,1737197437722,-6387.19,0.00023561,3]
[349464618,1737197437732,-2246.61,0.00023561,3]
[349464620,1737197437741,-643.84,0.00023561,3]
[349464622,1737197437751,-679.86,0.00023561,3]
[349464624,1737197437760,-500.0,0.00023561,3]
[349464626,1737197437770,-735.4,0.00023561,3]
[349464627,1737197437780,-664.55,0.00023561,3]
[349464628,1737197437789,-500.0,0.00023561,3]
[349464629,1737197437799,-628.29,0.00023561,3]
[349464630,1737197437808,-2655.67,0.00023561,3]
[349464631,1737197437817,-5096.66,0.00023561,3]
[349464632,1737197437826,-915.28,0.00023561,3]
[349464633,1737197437836,-1405.78,0.00023561,3]
[349464634,1737197437846,-22559.35537615,0.00023579,2]
[349464635,1737197437855,-151.0,0.00023587,2]
[349464636,1737197437864,-151.0,0.00023587,2]
[349464637,1737197437874,-151.0,0.00023587,2]
[349464638,1737197437883,-151.0,0.00023587,2]
[349464639,1737197437893,-151.0,0.00023587,2]
[349464640,1737197437902,-151.0,0.00023587,2]
[349464641,1737197437912,-151.0,0.00023587,2]
[349464642,1737197437921,-151.0,0.00023587,2]
[349464643,1737197437931,-151.0,0.00023587,2]
[349464644,1737197437941,-1200.0,0.00023595,2]
[349464646,1737197437950,-249.0,0.0002362,2]
[349464648,1737197437960,-249.81,0.00023623,2]
[349464651,1737197437970,-2003.16326709,0.00023624,3]
[349464653,1737197437980,-151.0,0.00023693,7]
[349464655,1737197437991,-2003.16326709,0.00023693,3]
[349464657,1737197438004,-151.0,0.00023694,7]
[349464658,1737197438014,-500.0,0.00023698,2]
[349464660,1737197438023,-500.0,0.00023698,2]
[349464662,1737197438033,-500.0,0.00023698,2]
[349464664,1737197438045,-738.23640156,0.00023698,2]
[349464666,1737197438055,-151.0,0.00023698,7]
[349464669,1737197438064,-151.0,0.00023698,7]
[349464671,1737197438075,-151.0,0.00023698,7]
[349464673,1737197438085,-151.0,0.00023698,7]
[349464675,1737197438095,-151.0,0.00023698,7]
[349464677,1737197438105,-500.0,0.00023698,2]
[349464679,1737197438115,-500.0,0.00023698,3]
[349464681,1737197438124,-500.0,0.00023698,3]
[349464683,1737197438133,-6387.19,0.00023698,3]
[349464685,1737197438143,-2246.61,0.00023698,3]
[349464687,1737197438153,-643.84,0.00023698,3]
[349464689,1737197438162,-679.86,0.00023698,3]
[349464691,1737197438172,-500.0,0.00023698,3]
[349464693,1737197438182,-735.4,0.00023698,3]
[349464695,1737197438191,-664.55,0.00023698,3]
[349464697,1737197438202,-500.0,0.00023698,3]
[349464699,1737197438211,-628.29,0.00023698,3]
[349464701,1737197438221,-2655.67,0.00023698,3]
[349464703,1737197438230,-5096.66,0.00023698,3]
[349464705,1737197438239,-915.28,0.00023698,3]
[349464707,1737197438249,-1405.78,0.00023698,3]
[349464709,1737197438260,-151.0,0.000237,7]
[349464711,1737197438269,-153.42,0.000237,31]
[349464713,1737197438278,-153.42,0.000237,31]
[349464715,1737197438288,-153.42,0.000237,31]
[349464717,1737197438298,-153.42,0.000237,31]
[349464719,1737197438310,-153.42,0.000237,31]
[349464721,1737197438319,-153.42,0.000237,31]
[349464723,1737197438329,-153.42,0.000237,31]
[349464725,1737197438338,-153.42,0.000237,31]
[349464727,1737197438347,-153.42,0.000237,31]
[349464729,1737197438356,-153.42,0.000237,31]
[349464731,1737197438366,-153.42,0.000237,31]
[349464733,1737197438375,-153.42,0.000237,31]
[349464735,1737197438384,-1000.0,0.00023704,2]
[349464736,1737197438394,-203.94573,0.00023729,7]
[349464738,1737197438403,-1016.7350972,0.00023735,2]
[349464740,1737197438413,-160.0,0.00023737,4]
[349464742,1737197438422,-160.0,0.00023737,5]
[349464743,1737197438431,-939.17940261,0.00023752,2]
[349464745,1737197438441,-2003.16326709,0.00023762,3]
[349464747,1737197438450,-7783.68861727,0.00023783,2]
[349464749,1737197438460,-5000.0,0.00023783,2]
[349464751,1737197438469,-5000.0,0.00023783,2]
[349464753,1737197438479,-5000.0,0.00023783,2]
[349464754,1737197438488,-5000.0,0.00023783,2]
[349464756,1737197438497,-420.0,0.00023799,2]
[349464758,1737197438506,-2000.0,0.000238,2]
[349464760,1737197438517,-188.0,0.000238,2]
[349464761,1737197438526,-2000.0,0.000238,2]
[349464763,1737197438535,-151.0,0.000238,5]
[349464765,1737197438544,-151.0,0.00023821,7]
[349464766,1737197438554,-151.0,0.00023821,7]
[349464768,1737197438563,-151.0,0.00023821,7]
[349464770,1737197438572,-151.0,0.00023821,7]
[349464772,1737197438582,-1000.0,0.00023826,2]
[349464773,1737197438592,-2003.16326709,0.00023831,3]
[349464775,1737197438601,-151.0,0.00023835,7]
[349464777,1737197438610,-260.075084,0.00023835,2]
[349464779,1737197438620,-151.0,0.00023835,7]
[349464781,1737197438629,-151.0,0.00023835,7]
[349464783,1737197438639,-500.0,0.00023835,2]
[349464784,1737197438648,-151.0,0.00023835,7]
[349464786,1737197438658,-2478.114996,0.00023835,7]
[349464788,1737197438667,-2478.114996,0.00023835,7]
[349464790,1737197438677,-151.0,0.00023835,7]
[349464791,1737197438687,-151.0,0.00023835,7]
[349464793,1737197438696,-500.0,0.00023835,3]
[349464795,1737197438707,-500.0,0.00023835,3]
[349464797,1737197438716,-6387.19,0.00023835,3]
[349464798,1737197438726,-2246.61,0.00023835,3]
[349464800,1737197438735,-643.84,0.00023835,3]
[349464802,1737197438744,-679.86,0.00023835,3]
[349464804,1737197438754,-500.0,0.00023835,3]
[349464806,1737197438763,-735.4,0.00023835,3]
[349464807,1737197438773,-664.55,0.00023835,3]
[349464809,1737197438783,-500.0,0.00023835,3]
[349464811,1737197438793,-628.29,0.00023835,3]
[349464813,1737197438803,-2655.67,0.00023835,3]
[349464815,1737197438812,-151.0,0.00023835,7]
[349464816,1737197438821,-5096.66,0.00023835,3]
[349464818,1737197438830,-151.0,0.00023835,7]
[349464820,1737197438840,-915.28,0.00023835,3]
[349464822,1737197438850,-151.0,0.00023835,7]
[349464824,1737197438859,-151.0,0.00023835,7]
[349464825,1737197438870,-1405.78,0.00023835,3]
[349464827,1737197438880,-500.71416595,0.00023835,9]
[349464829,1737197438890,-500.0,0.00023835,9]
[349464831,1737197438900,-13629.44816388,0.00023841,5]
[349464833,1737197438910,-1491.14415357,0.00023841,5]
[349464834,1737197438920,-151.0,0.00023841,7]
[349464836,1737197438930,-245.476924,0.00023841,7]
[349464838,1737197438940,-151.0,0.00023841,7]
[349464840,1737197438950,-151.0,0.00023841,7]
[349464842,1737197438959,-151.0,0.00023841,7]
[349464843,1737197438969,-151.0,0.00023841,7]
[349464845,1737197438979,-58110.84530299,0.00023841,2]
[349464847,1737197438990,-151.0,0.00023841,7]
[349464849,1737197439003,-1130.767212,0.00023841,7]
[349464851,1737197439012,-1130.767212,0.00023841,7]
[349464852,1737197439022,-363.346189,0.00023841,7]
[349464854,1737197439031,-363.346189,0.00023841,7]
[349464856,1737197439042,-151.0,0.00023841,7]
[349464858,1737197439051,-151.0,0.00023841,7]
[349464860,1737197439060,-151.0,0.00023841,7]
[349464862,1737197439070,-151.0,0.00023841,7]
[349464864,1737197439080,-151.0,0.00023841,7]
[349464865,1737197439089,-151.0,0.00023873,7]
[349464867,1737197439098,-500.0,0.00023876,2]
[349464869,1737197439108,-500.0,0.00023876,2]
[349464870,1737197439120,-500.0,0.0002388,3]
[349464871,1737197439129,-8736.08,0.000239,2]
[349464872,1737197439139,-4899.49,0.000239,14]
[349464873,1737197439148,-2003.16326709,0.000239,3]
[349464874,1737197439157,-41718.29462518,0.00023917,59]
[349464875,1737197439167,-151.0,0.00023917,7]
[349464876,1737197439176,-151.0,0.00023917,7]
[349464877,1737197439186,-151.0,0.00023917,7]
[349464878,1737197439196,-197.138609,0.00023917,7]
[349464879,1737197439205,-151.0,0.00023941,7]
[349464880,1737197439214,-151.0,0.00023941,7]
[349464881,1737197439224,-151.0,0.00023941,7]
[349464882,1737197439234,-194.566518,0.00023941,7]
[349464883,1737197439245,-151.0,0.00023941,7]
[349464884,1737197439254,-151.0,0.00023941,7]
[349464885,1737197439264,-151.0,0.00023941,7]
[349464886,1737197439274,-151.0,0.00023941,7]
[349464887,1737197439284,-151.0,0.00023941,7]
[349464888,1737197439294,-151.0,0.00023941,7]
[349464889,1737197439304,-151.0,0.00023941,7]
[349464890,1737197439313,-151.0,0.00023941,7]
[349464891,1737197439322,-151.0,0.00023941,7]
[349464892,1737197439332,-151.0,0.00023941,7]
[349464893,1737197439342,-151.195435,0.00023941,7]
[349464894,1737197439351,-151.0,0.00023941,7]
[349464895,1737197439363,-151.0,0.00023941,7]
[349464896,1737197439372,-151.0,0.00023941,7]
[349464897,1737197439381,-207.855228,0.00023941,7]
[349464898,1737197439391,-151.0,0.00023941,7]
[349464899,1737197439400,-151.0,0.00023941,7]
[349464900,1737197439410,-151.0,0.00023941,7]
[349464901,1737197439420,-151.0,0.00023941,7]
[349464902,1737197439429,-151.0,0.00023941,7]
[349464903,1737197439438,-301.666287,0.00023941,7]
[349464904,1737197439447,-151.0,0.00023941,7]
[349464905,1737197439457,-151.0,0.00023941,7]
[349464906,1737197439466,-151.0,0.00023941,7]
[349464907,1737197439476,-209.802351,0.00023941,7]
[349464908,1737197439485,-151.0,0.00023941,7]
[349464909,1737197439494,-151.0,0.00023941,7]
[349464910,1737197439504,-271.128582,0.00023941,7]
[349464911,1737197439514,-151.0,0.00023941,7]
[349464912,1737197439524,-151.0,0.00023941,7]
[349464913,1737197439533,-151.0,0.00023941,7]
[349464914,1737197439543,-151.0,0.00023941,7]
[349464915,1737197439553,-151.0,0.00023941,7]
[349464916,1737197439562,-151.0,0.00023941,7]
[349464917,1737197439571,-151.0,0.00023941,7]
[349464918,1737197439581,-151.0,0.00023941,7]
[349464919,1737197439590,-151.0,0.00023941,7]
[349464920,1737197439600,-151.0,0.00023941,7]
[349464921,1737197439609,-151.0,0.00023941,7]
[349464922,1737197439621,-151.0,0.00023941,7]
[349464923,1737197439630,-2478.114996,0.00023941,7]
[349464924,1737197439639,-2478.114996,0.00023941,7]
[349464925,1737197439649,-2478.114996,0.00023941,7]
[349464926,1737197439659,-2478.114996,0.00023941,7]
[349464927,1737197439759,-2478.114996,0.00023941,7]
[349464928,1737197439771,-2478.114996,0.00023941,7]
[349464929,1737197439782,-2478.114996,0.00023941,7]
[349464930,1737197439793,-2478.114996,0.00023941,7]
[349464931,1737197439805,-2478.114996,0.00023941,7]
[349464932,1737197439815,-2478.114996,0.00023941,7]
[349464933,1737197439825,-2478.114996,0.00023941,7]
[349464934,1737197439834,-2478.114996,0.00023941,7]
[349464935,1737197439843,-2478.114996,0.00023941,7]
[349464936,1737197439852,-2478.114996,0.00023941,7]
[349464937,1737197439863,-2478.114996,0.00023941,7]
[349464938,1737197439872,-2478.11499262,0.00023941,7]
[349464939,1737197439881,-151.0,0.00023941,7]
[349464940,1737197439891,-151.0,0.00023941,7]
[349464941,1737197439900,-151.0,0.00023941,7]
[349464942,1737197439909,-151.0,0.00023941,7]
[349464943,1737197439918,-151.0,0.00023941,7]
[349464944,1737197439928,-151.0,0.00023941,7]
[349464945,1737197439937,-151.0,0.00023941,7]
[349464946,1737197439947,-151.0,0.00023941,7]
[349464947,1737197439957,-289.528901,0.00023941,7]
[349464948,1737197439966,-151.0,0.00023941,7]
[349464949,1737197439976,-151.0,0.00023941,7]
[349464950,1737197439985,-151.0,0.00023941,7]
[349464951,1737197439998,-151.0,0.00023941,7]
[349464952,1737197440008,-177.40628,0.00023941,7]
[349464953,1737197440018,-1130.767212,0.00023941,7]
[349464954,1737197440027,-1130.767212,0.00023941,7]
[349464955,1737197440038,-1130.767212,0.00023941,7]
[349464956,1737197440048,-1130.767212,0.00023941,7]
[349464957,1737197440057,-1130.767212,0.00023941,7]
[349464958,1737197440068,-1130.767212,0.00023941,7]
[349464959,1737197440078,-1130.767212,0.00023941,7]
[349464960,1737197440087,-1130.767212,0.00023941,7]
[349464961,1737197440096,-1130.767212,0.00023941,7]
[349464962,1737197440106,-1130.767212,0.00023941,7]
[349464963,1737197440116,-1130.767212,0.00023941,7]
[349464964,1737197440125,-1130.767212,0.00023941,7]
[349464965,1737197440135,-1130.767212,0.00023941,7]
[349464966,1737197440144,-1130.767212,0.00023941,7]
[349464967,1737197440153,-1130.767212,0.00023941,7]
[349464968,1737197440163,-1130.767206,0.00023941,7]
[349464969,1737197440172,-363.346189,0.00023941,7]
[349464970,1737197440182,-363.346189,0.00023941,7]
[349464971,1737197440191,-363.346189,0.00023941,7]
[349464972,1737197440200,-363.346189,0.00023941,7]
[349464973,1737197440212,-363.346189,0.00023941,7]
[349464974,1737197440221,-363.346189,0.00023941,7]
[349464975,1737197440231,-363.346189,0.00023941,7]
[349464976,1737197440240,-363.346189,0.00023941,7]
[349464977,1737197440249,-363.346189,0.00023941,7]
[349464978,1737197440259,-363.346189,0.00023941,7]
[349464979,1737197440267,-363.346189,0.00023941,7]
[349464980,1737197440277,-363.346189,0.00023941,7]
[349464981,1737197440286,-363.346189,0.00023941,7]
[349464982,1737197440296,-363.346189,0.00023941,7]
[349464983,1737197440306,-363.346189,0.00023941,7]
[349464984,1737197440316,-363.34618499,0.00023941,7]
[349464985,1737197440325,-151.0,0.00023941,7]
[349464986,1737197440334,-151.0,0.00023941,7]
[349464987,1737197440343,-151.0,0.00023941,7]
[349464988,1737197440353,-151.0,0.00023941,7]
[349464989,1737197440363,-151.0,0.00023941,7]
[349464990,1737197440371,-151.0,0.00023941,7]
[349464991,1737197440380,-151.0,0.00023941,7]
[349464992,1737197440391,-151.0,0.00023941,7]
[349464993,1737197440400,-151.0,0.00023941,7]
[349464994,1737197440409,-151.0,0.00023941,7]
[349464995,1737197440419,-165.751684,0.00023941,7]
[349464996,1737197440428,-152.841667,0.00023941,7]
[349464997,1737197440437,-163.392393,0.00023941,7]
[349464998,1737197440445,-151.0,0.00023941,7]
[349464999,1737197440454,-151.0,0.00023941,7]
[349465000,1737197440463,-151.0,0.00023941,7]
[349465001,1737197440472,-151.0,0.00023941,7]
[349465002,1737197440481,-151.0,0.00023941,7]
[349465003,1737197440490,-151.0,0.00023941,7]
[349465004,1737197440499,-171.299005,0.00023941,7]
[349465005,1737197440508,-151.0,0.00023941,7]
[349465006,1737197440516,-151.0,0.00023941,7]
[349465007,1737197440525,-151.0,0.00023941,7]
[349465008,1737197440534,-151.0,0.00023941,7]
[349465009,1737197440543,-151.0,0.00023941,7]
[349465010,1737197440551,-151.0,0.00023941,7]
[349465011,1737197440560,-151.0,0.00023941,7]
[349465012,1737197440569,-365931.40857453,0.00023941,61]
[349465013,1737197440812,-395.335,0.0002177,2]
[349465014,1737197440820,-105.25644884,0.00022324,2]
[349465015,1737197440830,-98.7024267,0.00022324,2]
[349465016,1737197440838,-500.0,0.00022324,2]
[349465017,1737197440847,-500.0,0.00022324,2]
[349465018,1737197440855,-500.0,0.00022324,2]
[349465019,1737197440865,-118.83730579,0.00022324,2]
[349465145,1737197444263,-500.0,0.00021917,3]
[349465146,1737197444272,-500.0,0.00022054,3]
[349465147,1737197444281,-500.0,0.00022191,3]
[349465148,1737197444290,-381.16269421,0.00022324,2]
[349465149,1737197444299,-500.0,0.00022324,2]
[349465150,1737197444308,-500.0,0.00022324,2]
[349465151,1737197444316,-500.0,0.00022324,2]
[349465152,1737197444325,-238.8334181,0.00022324,2]
[349465153,1737197444333,-605.69064961,0.00022324,2]
[349465154,1737197444342,-500.0,0.00022324,2]
[349465155,1737197444350,-500.0,0.00022324,2]
[349465156,1737197444359,-500.0,0.00022324,2]
[349465157,1737197444369,-500.0,0.00022324,2]
[349465158,1737197444378,-500.0,0.00022324,2]
[349465159,1737197444386,-500.0,0.00022324,2]
[349465160,1737197444395,-500.0,0.00022324,2]
[349465161,1737197444402,-500.0,0.00022324,2]
[349465162,1737197444409,-520.0,0.00022324,2]
[349465163,1737197444416,-500.0,0.00022324,2]
[349465164,1737197444422,-500.0,0.00022324,2]
[349465165,1737197444429,-500.0,0.00022324,2]
[349465166,1737197444436,-500.0,0.00022324,2]
[349465167,1737197444443,-500.0,0.00022324,2]
[349465168,1737197444449,-588.26688736,0.00022324,2]
[349465169,1737197444456,-500.0,0.00022328,3]
[349465170,1737197444463,-500.0,0.00022465,3]
[349465171,1737197444471,-174.68278727,0.00023586,2]
[349465172,1737197444478,-14646.55873322,0.00023941,61]
[349465193,1737197895486,165.662053,0.00013973,2]
[349465311,1737198632534,-1228.5,0.00017161,2]
[349465312,1737198632545,-362.31084424,0.00017334,2]
[349465333,1737198638449,-866.18915576,0.00017334,2]
[349465334,1737198638459,-209.35153957,0.00019667,2]
[349465336,1737198638468,-16.73930467,0.00019754,7]
[349465529,1737198640493,-359.50100004,0.00019754,7]
[349465537,1737198640551,-852.25969529,0.00019754,7]
[349465539,1737198640560,-2890.0,0.0002,2]
[349465541,1737198640570,-500.0,0.00020702,2]
[349465542,1737198640579,-300.0,0.00020999,2]
[349465544,1737198640588,-3301.26346995,0.00021,2]
[349465546,1737198640597,-165.662053,0.00021209,2]
[349465548,1737198640607,-189.6033737,0.000214,2]
[349465550,1737198640616,-537.53372415,0.00021499,2]
[349465552,1737198640626,-500.0,0.00021499,2]
[349465555,1737198640637,-400.6322944,0.00021499,2]
[349465557,1737198640646,-280.0,0.00021499,2]
[349465559,1737198640656,-500.0,0.00021499,2]
[349465561,1737198640666,-176.47409859,0.00021499,2]
[349465563,1737198640676,-182.192,0.00021499,2]
[349465565,1737198640686,-92324.37929092,0.000215,10]
[349465855,1737198643507,-2198.410024,0.000215,10]
[349472514,1737198713884,159.690119,0.00013973,2]
[349473046,1737199613671,162.631658,0.00013973,2]
[349473110,1737199832742,-634.5726389,0.00018496,2]
[349473111,1737199832753,-180.3273182,0.00018683,2]
[349473112,1737199832764,-454.2453207,0.00018683,2]
[349473113,1737199832775,-1355.81528271,0.00018872,8]
[349473114,1737199832784,-300.0,0.00019999,2]
[349473115,1737199832794,-4894.28179646,0.0002,7]
[349473116,1737199832803,-15015.46493744,0.0002,2]
[349473117,1737199832812,-222.0013429,0.00020045,2]
[349473118,1737199832822,-879.0174282,0.00020045,2]
[349473119,1737199832831,-500.0,0.00020551,2]
[349473120,1737199832840,-473.75789784,0.00020972,2]
[349473121,1737199832850,-636.30610776,0.00020999,2]
[349473122,1737199832987,-182.192,0.00020999,2]
[349473123,1737199832998,-10550.20530628,0.00021,8]
[349473124,1737199833010,-25666.11909078,0.00021,8]
[349473145,1737199838587,-306.60121818,0.00021,8]
[349473146,1737199838596,-165.90295204,0.00021109,2]
[349473147,1737199838606,-162.631658,0.00021209,2]
[349473148,1737199838618,-158.30585141,0.000214,2]
[349473149,1737199838627,-200.75078381,0.000214,2]
[349473150,1737199838639,-135.31266303,0.000214,2]
[349473151,1737199838648,-152.0,0.00021441,2]
[349473152,1737199838657,-151.16,0.00021473,2]
[349473153,1737199838667,-500.0,0.00021499,2]
[349473154,1737199838676,-500.0,0.00021499,2]
[349473155,1737199838686,-500.0,0.00021499,2]
[349473156,1737199838698,-500.0,0.00021499,2]
[349473157,1737199838707,-293.78303683,0.00021499,2]
[349473158,1737199838716,-605.17923227,0.00021499,2]